Cogmind - Beta 13 @@@ ROGUE MODE // 2024.03.21 @ 23:24:06 Player: darki Result: Destroyed by MH-PIF(R) with Subdweller Machine Gun Performance ------------- Evolutions (0) 0 Regions Visited (3) 600 Robots Destroyed (34) 170 Value Destroyed (714) 714 Prototype IDs (0) 0 Alien Tech Used (0) 0 Bonus (-522) -522 TOTAL SCORE: 962 Bonus ------- Friendly Fire -522 Cogmind --------- Core Integrity 0/250 Matter 46/300 Energy 212/250 System Corruption 0% Temperature Cool (12) Movement Treading (160) Location -10/Subcaves Parts ------- > --- POWER (1) -------- Ion Engine > --- PROPULSION (2) --- Light Treads Light Treads > --- UTILITY (2) ------ Small Storage Unit > --- WEAPON (2) ------- Subdweller Laser Subdweller Laser > --- INVENTORY (8) ---- Light Treads Compact Matter Pod (150) EM Pulse Gun Light Assault Rifle Heavy Assault Rifle Subdweller Machine Gun Subdweller Shrapnel Launcher Subdweller Shrapnel Launcher Peak State ------------ > --- POWER ------------ Ion Engine > --- PROPULSION ------- Aluminum Leg Aluminum Leg > --- UTILITY ---------- Small Storage Unit Signal Interpreter > --- WEAPON ----------- Heavy Assault Rifle Heavy Assault Rifle > --- INVENTORY -------- Ion Engine Light Treads Light Treads Light Treads Compact Matter Pod Light Armor Plating EM Pulse Gun Light Assault Rifle [Rating: 10] Favorites ----------- Power Ion Engine Engine Ion Engine Propulsion Light Treads Treads Light Treads Leg Aluminum Leg Utility Small Storage Unit Storage Small Storage Unit Processor Signal Interpreter Protection Light Armor Plating Weapon Subdweller Shrapnel Launcher Energy Gun Subdweller Laser Ballistic Gun Heavy Assault Rifle Launcher Subdweller Shrapnel Launcher Build | -11 -10 -10 -10 ------- Run | Yrd Mat Min Sub Slots Evolved . | . . . . Power . | . . . . Propulsion . | . . . . Utility . | . . . . Weapon . | . . . . Parts Attached 30 | . 3 6 21 Power 4 | . 1 . 3 Engine 4 | . 1 . 3 Core . | . . . . Reactor . | . . . . Propulsion 4 | . . 2 2 Treads 2 | . . . 2 Leg 2 | . . 2 . Wheel . | . . . . Hover . | . . . . Flight . | . . . . Utility 2 | . . 1 1 Device . | . . . . Storage . | . . . . Processor 1 | . . 1 . Hackware . | . . . . Protection 1 | . . . 1 Artifact . | . . . . Weapon 20 | . 2 3 15 Energy Gun 8 | . 1 . 7 Energy Cannon . | . . . . Ballistic Gun 6 | . 1 3 2 Ballistic Cannon . | . . . . Launcher 6 | . . . 6 Special Weapon . | . . . . Impact Weapon . | . . . . Slashing Weapon . | . . . . Piercing Weapon . | . . . . Special Melee Weapon . | . . . . Unidentified Prototypes . | . . . . Parts Lost 4 | . 1 . 3 Power 1 | . . . 1 Propulsion . | . . . . Utility 1 | . . . 1 Weapon 2 | . 1 . 1 Highest Loss Streak 2 | . 1 . 2 To Critical Strikes . | . . . . Average Slot Usage (%) 97 | . 85 98 99 Engine 13 | . 14 14 13 Treads 15 | . . . 24 Leg 12 | . 28 28 3 Storage 14 | . 14 14 14 Processor 3 | . . 13 . Protection 8 | . . . 12 Energy Gun 8 | . 19 8 6 Ballistic Gun 11 | . 8 19 8 Launcher 8 | . . . 12 Naked Turns . | . . . . Heaviest Build 29 | 13 14 16 29 Greatest Support 40 | 20 20 20 40 Greatest Overweight (x) . | . . . . Average Overweight (x) . | . . . . Largest Inventory Capacity 8 | . 8 8 8 Average Capacity 8 | . 8 8 8 Most Carried 8 | . 8 8 8 Average Carried 6 | . 7 7 6 Final Capacity 8 | 8 8 8 8 Final Carried 8 | 6 8 8 8 Class Distribution -------------------- 90% | Mutant 9% | Scavenger-Mutant Dominant Class ---------------- Mutant | -10/Materials Mutant | -10/Mines Mutant | -10/Subcaves Resources | -11 -10 -10 -10 ----------- Run | Yrd Mat Min Sub Matter Collected 886 | 200 131 280 275 Remotely . | . . . . Salvage Created 1013 | . 311 316 386 Parts 67 | . 23 15 29 Haulers Intercepted . | . . . . Recyclers Shooed 3 | . 1 2 . Parts Field Recycled . | . . . . Retrieved Matter . | . . . . Parts Self-Destructed 14 | . . . 14 Prevented . | . . . . Kills | -11 -10 -10 -10 ------- Run | Yrd Mat Min Sub Combat Hostiles Destroyed 27 | . 9 5 13 Guns 22 | . 6 5 11 AOE 4 | . 2 . 2 Classes Destroyed 8 | . 3 1 4 Recycler 1 | . . 1 . Turret 2 | . . . 2 Watcher 2 | . 2 . . Swarmer 16 | . 6 3 7 Grunt 5 | . 3 2 . Artisan 2 | . . . 2 Cobbler 1 | . . . 1 Subdweller 6 | . . . 6 Thug 2 | . . 2 . Best Kill Streak 4 | . 3 3 4 Combat Bots Only 4 | . 3 3 4 Max Kills in Single Turn 2 | . 2 1 1 Gunslinging 1 | . 1 . . Exploded 2 | . 2 . 1 Melee . | . . . . Uniques/NPCs Destroyed . | . . . . Combat | -11 -10 -10 -10 -------- Run | Yrd Mat Min Sub Hostile Shots Fired 118 | . 37 31 50 Missed 37 | . 14 11 12 Damage Taken 1128 | . 312 229 587 Core 259 | . 89 51 119 Absorbed by Shields . | . . . . Core Remaining (%) 100 | 100 . . . Volleys Fired 127 | . 26 63 38 Largest 2 | . 2 2 2 Hottest 120 | . 80 46 120 Shots Fired 195 | . 51 70 74 Gun 183 | . 51 70 62 Cannon . | . . . . Launcher 12 | . . . 12 Special . | . . . . Kinetic 137 | . 16 70 51 Thermal 23 | . . . 23 Explosive . | . . . . Electromagnetic 35 | . 35 . . Robot Hit Streak 16 | . 10 7 16 Robot Miss Streak 4 | . 3 4 4 Penetration Max . | . . . . Secondary Targets 2 | . 2 . . Max Gunslinging Chain 1 | . 1 . . Shots Hit Robots 118 | . 31 45 42 Core Hits 59 | . 15 16 28 Critical Kills . | . . . . Critical Parts Destroyed 1 | . . 1 . Critical Strikes 2 | . 1 1 . Destroy 1 | . . 1 . Corrupt 1 | . 1 . . Melee Attacks . | . . . . Impact . | . . . . Slashing . | . . . . Piercing . | . . . . Sneak Attacks . | . . . . Combat Hostiles . | . . . . Follow-up Attacks . | . . . . Damage Inflicted 2342 | . 493 731 1118 Guns 1776 | . 404 731 641 Cannons . | . . . . Explosions 566 | . 89 . 477 Melee . | . . . . Ramming . | . . . . Kinetic 1645 | . 92 731 822 Thermal 385 | . 89 . 296 Explosive . | . . . . Electromagnetic 312 | . 312 . . Impact . | . . . . Slashing . | . . . . Piercing . | . . . . Highest Corruption . | . . . . Average Corruption . | . . . . Corruption Purged . | . . . . Corruption Blocked . | . . . . Overload Shots . | . . . . Overflow Damage 12 | . . . 12 Projectiles . | . . . . Explosions 12 | . . . 12 Melee . | . . . . Knockbacks . | . . . . Impact . | . . . . Kinetic . | . . . . Secondary . | . . . . Self-Inflicted Damage 35 | . 35 . . Shots 1 | . 1 . . Rammed . | . . . . Targets Rammed 1 | . . 1 . Kicked 1 | . . 1 . Crushed . | . . . . Highest Temperature 153 | . 153 23 18 Average Temperature 50 | . 66 10 9 Received Heat Transfer 294 | . 135 90 69 Siege Activations . | . . . . Robots Corrupted 1 | . 1 . . Combat Hostiles 1 | . 1 . . Parts Fried 1 | . 1 . . Impact Corruptions . | . . . . Robots Melted . | . . . . Combat Hostiles . | . . . . Parts Melted 1 | . . . 1 Heat Transferred 525 | . 150 . 375 Parts Sabotaged . | . . . . Parts Stolen . | . . . . Parts Stripped . | . . . . Power Chain Reactions 2 | . 2 . . Alert | -11 -10 -10 -10 ------- Run | Yrd Mat Min Sub Peak Influence 313 | . 313 100 . Initial 49 | . . 49 . Average 55 | . 98 38 . Maximum Alert Level 1 | . 1 . . Low Security (%) 94 | . 82 100 . Level 1 5 | . 17 . . Level 2 . | . . . . Level 3 . | . . . . Level 4 . | . . . . Level 5 . | . . . . High Security . | . . . . Max Security . | . . . . Squads Dispatched 1 | . 1 . . Investigation . | . . . . Extermination . | . . . . Reinforcement 1 | . 1 . . Assault . | . . . . Garrison . | . . . . Intercept . | . . . . Searches Triggered . | . . . . Construction Impeded . | . . . . Haulers Reinforced . | . . . . Active Scanning Responses . | . . . . Cargo Convoy Interrupts . | . . . . Stealth | -11 -10 -10 -10 --------- Run | Yrd Mat Min Sub Distress Signals . | . . . . Communications Jammed . | . . . . Distress Signals . | . . . . Times Spotted 47 | . 16 6 25 Peak Tracking Total 6 | . 4 3 6 Tactical Retreats 5 | . 1 . 4 Traps | -11 -10 -10 -10 ------- Run | Yrd Mat Min Sub Traps Triggered 1 | . . . 1 Indirectly . | . . . . Trap Hack Attempts . | . . . . Triggered . | . . . . Disarmed . | . . . . Reprogrammed . | . . . . Reused . | . . . . Traps Extracted . | . . . . Installed 1 | . . . 1 Triggered . | . . . . Machines | -11 -10 -10 -10 ---------- Run | Yrd Mat Min Sub Machines Disabled 5 | . 2 . 3 Max in Single Turn 3 | . 1 . 3 Machines Repaired . | . . . . Machines Dismantled . | . . . . Machines Sabotaged . | . . . . Overloaded Fab Kills . | . . . . Hacking | -11 -10 -10 -10 --------- Run | Yrd Mat Min Sub Machines Accessed 2 | . 1 . 1 Terminals 1 | . 1 . . Fabricators . | . . . . Repair Stations . | . . . . Recycling Units . | . . . . Scanalyzers . | . . . . Garrison Access . | . . . . Total Hacks 5 | . 4 . 1 Successful 2 | . 1 . 1 Failed 3 | . 3 . . Catastrophic . | . . . . Database Lockouts . | . . . . Manual 4 | . 4 . . Terminals 4 | . 4 . . Fabricators . | . . . . Repair Stations . | . . . . Recycling Units . | . . . . Scanalyzers . | . . . . Garrison Access . | . . . . Terminal Hacks 2 | . 1 . 1 Record 1 | . . . 1 Branch Access Points 1 | . 1 . . Fabricator Hacks . | . . . . Repair Station Hacks . | . . . . Recycling Unit Hacks . | . . . . Scanalyzer . | . . . . Garrison Access Hacks . | . . . . Unauthorized Hacks . | . . . . Terminals . | . . . . Fabricators . | . . . . Repair Stations . | . . . . Recycling Units . | . . . . Scanalyzers . | . . . . Garrison Access . | . . . . Data Cores Recovered . | . . . . Used . | . . . . Hacking Detections 1 | . 1 . . Full Trace Events . | . . . . Feedback Events . | . . . . Feedback Blocked . | . . . . Robot Schematics Acquired . | . . . . Robots Built . | . . . . Authchips . | . . . . Time . | . . . . Total Robot Build Rating . | . . . . Part Schematics Acquired . | . . . . Parts Built . | . . . . Authchips . | . . . . Time . | . . . . Total Part Build Rating . | . . . . Parts Repaired . | . . . . Time . | . . . . Parts Recycled . | . . . . Recycled Matter . | . . . . Retrieved Matter . | . . . . Retrieved Components . | . . . . Parts Scanalyzed . | . . . . Part Schematics Acquired . | . . . . Parts Damaged . | . . . . Bothacking | -11 -10 -10 -10 ------------ Run | Yrd Mat Min Sub Used RIF Installer . | . . . . Robots Hacked . | . . . . Non-combat . | . . . . Combat . | . . . . Robot Hacks Applied . | . . . . Relay Couplers Released . | . . . . Fabnet Peak Effective % . | . . . . Robots Rewired . | . . . . Allies Hacked . | . . . . Hacks Repelled . | . . . . Allies | -11 -10 -10 -10 -------- Run | Yrd Mat Min Sub Total Allies . | . . . . Largest Group . | . . . . Highest-Rated Group . | . . . . Highest-Rated Ally . | . . . . Total Orders . | . . . . Ally Attacks . | . . . . Total Damage . | . . . . Kills . | . . . . Allies Corrupted . | . . . . Allies Melted . | . . . . Intel | -11 -10 -10 -10 ------- Run | Yrd Mat Min Sub Robot Analysis Total . | . . . . Derelict Logs Recovered 3 | . . 2 1 Drone Launches . | . . . . Drone Recoveries . | . . . . Exploration | -11 -10 -10 -10 ------------- Run | Yrd Mat Min Sub Turns Passed 5227 | . 531 1317 3379 Spaces Moved 3313 | 1 366 854 2092 Core . | . . . . Treads 1757 | . . . 1757 Legs 1556 | 1 366 854 335 Wheels . | . . . . Hover . | . . . . Flight . | . . . . Fastest Speed 120 | 120 120 120 120 Average Speed 141 | 120 120 120 153 Slowest Speed 160 | 120 120 120 160 Overloaded Moves . | . . . . Propulsion Burnouts . | . . . . Robots Hopped . | . . . . Cave-ins Triggered . | . . . . Exploration Rate (%) 64 | 2 62 101 93 Regions Visited 3 Branch Regions 2 Pre-discovered Areas 3 | . . 2 1 Known Exits Taken 2 | . 1 1 . Unknown Exits Taken 1 | 1 . . . Scrap Searched 6 | . . 1 5 Spaces Dug . | . . . . Terrain Destroyed 109 | . 5 . 104 Melee . | . . . . Projectile . | . . . . AOE 109 | . 5 . 104 Terrain Rammed . | . . . . Walls Destroyed . | . . . . Machines Disabled . | . . . . Actions | -11 -10 -10 -10 --------- Run | Yrd Mat Min Sub Total 3666 | . 411 1077 2178 Wait 173 | . 9 146 18 Move 3310 | . 365 853 2092 Hop . | . . . . Pick Up 10 | . 5 3 2 Fast Attach 5 | . . 1 4 Attach 6 | . 1 1 4 Detach 2 | . . . 2 Swap 19 | . 2 4 13 Drop 12 | . 3 5 4 Fire 127 | . 26 63 38 Melee . | . . . . Ram . | . . . . Kick 1 | . . 1 . Crush . | . . . . Escape Stasis . | . . . . Rewire . | . . . . Trap 1 | . . . 1 Miscellaneous . | . . . . Route ------- -11/Scrapyard -10/Materials (discovered 3 exits: *Mat / *Min x2) -10/Mines (discovered 3 exits: *Mat x2 / *Sub) -10/Subcaves (discovered 3 exits: [*Mat x2] / [*Rec]) History --------- Turn | Location | Event 1 | -11/Scrapyard | Discovered new exit (range 0) 1 | -11/Scrapyard | Entered Materials 13 | -10/Materials | Identified exit to Mines 303 | -10/Materials | Build established: Mutant 435 | -10/Materials | Discovered new exit (range 4) 532 | -10/Materials | Entered Mines 601 | -10/Mines | Discovered new exit (range 13) 625 | -10/Mines | Identified exit to Materials 629 | -10/Mines | Joined a pair of Derelicts in attacking an 0b10 outpost 884 | -10/Mines | Learned location of Storage (-9) 996 | -10/Mines | Discovered exit to Materials (range 6) 1284 | -10/Mines | Learned Materials security intel 1340 | -10/Mines | Core integrity fell below 50% 1839 | -10/Mines | Discovered new exit (range 8) 1848 | -10/Mines | Identified exit to Subcaves 1849 | -10/Mines | Entered Subcaves 1912 | -10/Subcaves | Learned Materials emergency access door positions 1933 | -10/Subcaves | Core integrity fell below 20% 2243 | -10/Subcaves | Build established: Scavenger-Mutant 2260 | -10/Subcaves | A Subdweller sparked back to life 2260 | -10/Subcaves | A Subdweller sparked back to life 2357 | -10/Subcaves | Shifting Twisted Machinery released Sub. Monowheel 2596 | -10/Subcaves | Shifting Twisted Machinery released Sub. Optics 2627 | -10/Subcaves | A swath of the cavern ceiling suddenly collapsed 2704 | -10/Subcaves | Discovered new exit (range 11) 2762 | -10/Subcaves | Build established: Mutant 2893 | -10/Subcaves | Discovered new exit (range 12) 2894 | -10/Subcaves | Learned location of Zion (-6) 2894 | -10/Subcaves | Met a Zionite searching for "candidates" 3243 | -10/Subcaves | Discovered new exit (range 10) 4249 | -10/Subcaves | Visited Clippyterm 4681 | -10/Subcaves | Ambushed by Subdweller buried in earth 5147 | -10/Subcaves | A swath of the cavern ceiling suddenly collapsed 5228 | -10/Subcaves | Destroyed by MH-PIF(R) with Subdweller Machine Gun Last Messages --------------- queries and responses. --DD-NU8 04682_ 03-BJP(R): "ARGHSUB!" 04684_ Autobeam Turret destroyed. 04684_ Destroyed Autobeam. 04687_ 03-BJP(R) destroyed. 04690_ Autobeam Turret destroyed. 04717_ Acquired 45 matter. 04736_ Acquired 9 matter. 04747_ Acquired 15 matter. 05049_ 7C-DV2(u) cries out in pain. 05049_ 7C-DV2(u) destroyed. 05057_ DY-K9A(R) angrily emerges from the Twisted Machinery. 05057_ DY-K9A(R): "MADSUB!" 05062_ Lgt. Armor Plating destroyed. 05065_ DY-K9A(R) destroyed. A swath of the cavern ceiling suddenly collapses. 05226_ Sub. Monowheel melted. 05226_ NG-39X(R) destroyed. Map ----- +----------------------------------------------------+ | #?????????????????????????????????????????????? | | #?????????????????????????????????????????????? | | #?????????????????????????????????????????????? | | ##?????????????????????????????????????????????? | | ###??????????????????????????????????????????????? | | ?????????????????????????????????????????????????? | | ?????????????????????????????????????????????????? | | ?????????????????????????????????????????????????? | | ?????????????????????????????????????????????????? | | ?????????????????????????????????????????????????? | | ?????????????????????????????????????????????????? | | ?????????????????????????????????????????????????? | | ?????????????????????????????????????????????????? | | ?????????????????????????????????????????????????? | | ?????????????????????????????????????????????????? | | ?????????????????????????????????????????????????? | | ?????????????????????????????????????????????????? | | ?????????????????????????????????????????????????? | | ##????????????????????????????##??? ???????????? | | #??????????????????????????##"###" ??? ???? | | ##??###???????????????????## "" ?? #??? | | #?# ##??????????????????# " ##"" ? ???? | | ## #??????????????????## "##?#"" ??? ????? | | #??????????????????# " ###""#??? ?????? | | ##??????????????###### " ## "##? ??????? | | #???????????????# @# "##? ?? #??????? | | #???????????????##!R& "#?? $ ? #??????? | | ##???????????????# [& "#?## ## #???????? | | ##???????????????# # ##?? #???????? | | ##??????????????## ####?### #???????? | | #??????????????# #???# ##### ## #??? | | ##??????????????## ##???#"#"""## #??? | | ## #???????????????# #???##""##"# #???? | | ### ##???????????????# #####"""#### ##???? | | #?####???????????????## ## "##?## ##????? | | #????????????????????# ### "#????###?????? | | #????????????????????# " ### ##????????????? | | ##????????????????????#"" ##?????????????? | | #?????????????????????## ###??????????????? | | ???????????????????????# #????????????????? | | ???????????????????##### #????????????????? | | #??????????????###?# "" #????????????????? | | #????????????# ##"""" ##???????????????? | | #??????????## #" ##??????????????? | | ############ ##" ##?????????????? | | ## ## #?#" #?????????????? | | % #?# #???????####??? | | % ## #?## #???##### #??? | | ## #### ##?## ## #??? | | ## ### % ### #??? | +----------------------------------------------------+ Best States ------------- Heat Dissipation 25 Energy Generation 15 Energy Capacity 250 Matter Stores 300 Matter Capacity 300 Sight Range 16 Terrain Scan Density 10 Armor Coverage 150 Evasion (%) 55 Recoil Reduction 2 Item Schematics ----------------- None Robot Schematics ------------------ None Fabricated ------------ Nothing Alien Tech Used ----------------- None Achievements -------------- None Challenges ------------ None Game ------ Seed IntegrityTacticalBox Manual? 0 Play Time 00:24:26 Cumulative 172.7 hours Start 2024.03.21 @ 22:58:10 End 2024.03.21 @ 23:24:06 Sessions 1 Manual Loads 0 Difficulty Rogue Special Mode None Game No. 182 Rogue 182 Adventurer 0 Explorer 0 Win Type - Total 1 Types 1/0/0/0/0/0/0/0/0 Lore% 56 Gallery% 72 Achievement% 57 Wizard Run 0 Options --------- Layout 1 ASCII 0 Keyboard 0 Movement Numpad Keybinds 0 Fullscreen 1 Font 24/Smallcaps Map View 50x35 Zoom Use 0% Tactical HUD 1 Map Filters NONE Filters NONE Steam 1 RUN: 89a3ae77-15be-4025-8d04-37503a7a4473